bitfinex-derivatives/quotes_SOLF0:USTF0_20240911
["timestamp","ask_amount","ask_price","bid_price","bid_amount"]
[1726019204414,29.45252788,134.65,134.55,3.7158]
[1726019204618,25.77,134.65,134.55,3.7158]
[1726019204914,29.41035087,134.65,134.54,6.3271]
[1726019206008,322.28885023,134.39,134.38,26.0853048]
[1726019206311,17.77,134.65,134.39,22.33]
[1726019206516,7.7601057,134.73,134.57,25.77]
[1726019206517,25.77,134.68,134.57,25.77]
[1726019206821,29.42596193,134.7,134.57,25.77]
[1726019207117,29.42596193,134.7,134.59,3.7146]
[1726019207118,25.77,134.7,134.59,3.7146]
[1726019207311,25.77,134.7,134.57,25.77]
[1726019207312,29.46647636,134.7,134.57,29.46275944]
[1726019207514,29.48914956,134.7,134.6,3.7143]
[1726019207704,29.48914956,134.7,134.57,29.46275944]
[1726019208118,19.76914956,134.7,134.6,3.7144]
[1726019208315,19.76914956,134.7,134.48,22.33]
[1726019208516,16.05,134.68,134.57,16.05]
[1726019208924,2.7309,134.69,134.55,16.05]
[1726019208925,16.05,134.66,134.55,16.05]
[1726019209131,1.2828,134.65,134.55,16.05]
[1726019209522,17.3328,134.65,134.55,16.05]
[1726019210028,1.2828,134.65,134.56,16.05]
[1726019210324,1.2828,134.65,134.58,3.7148]
[1726019211230,1.2828,134.65,134.54,25.68]
[1726019211729,26.9628,134.65,134.55,3.7157]
[1726019211936,26.9628,134.65,134.52,25.68]
[1726019212228,25.68,134.63,134.52,25.68]
[1726019212429,2.6662,134.62,134.52,25.68]
[1726019212631,2.6662,134.62,134.51,4.0775]
[1726019212832,25.68,134.59,134.39,25.68]
[1726019213026,25.68,134.59,134.48,3.7176]
[1726019213027,1.2896,134.58,134.48,3.7176]
[1726019213225,25.68,134.56,134.44,33.38507272]
[1726019213428,1.34,134.55,134.44,33.38507272]
[1726019213630,1.34,134.55,134.46,25.68]
[1726019215030,1.34,134.55,134.48,25.68]
[1726019215531,1.34,134.55,134.48,29.3977]
[1726019215727,1.34,134.55,134.46,25.68]
[1726019216129,1.34,134.55,134.47,3.718]
[1726019216426,4.97837391,134.62,134.5,25.68]
[1726019216427,1.3262,134.62,134.5,25.68]
[1726019216627,1.4115,134.61,134.5,25.68]
[1726019216831,2.8232,134.61,134.5,25.68]
[1726019217232,2.8232,134.61,134.5,29.36055039]
[1726019218230,2.8232,134.61,134.53,3.7162]
[1726019218431,2.8232,134.61,134.51,4.0939]
[1726019218633,2.8232,134.61,134.52,25.68]
[1726019220043,2.8232,134.61,134.55,3.7157]
[1726019220338,2.8232,134.61,134.52,25.68]
[1726019220534,2.8232,134.61,134.51,4.0939]
[1726019220932,2.8232,134.61,134.5,25.68]
[1726019221133,2.8232,134.61,134.5,3.717]
[1726019221338,2.8232,134.61,134.48,6.38219705]
[1726019221536,2.8232,134.61,134.53,3.7162]
[1726019221739,2.8232,134.61,134.51,25.68]
[1726019222035,25.68,134.6,134.49,5.0364]
[1726019222243,25.68,134.6,134.48,2.7489]
[1726019222537,25.68,134.58,134.45,25.68]
[1726019222736,25.68,134.58,134.47,3.718]
[1726019222936,25.68,134.6,134.43,25.68]
[1726019222937,25.68,134.54,134.43,25.68]
[1726019223137,4.1359,134.53,134.44,3.7188]
[1726019224028,4.1359,134.53,134.43,25.68]
[1726019225341,4.1359,134.53,134.44,3.7188]
[1726019225837,4.1359,134.53,134.45,3.7186]
[1726019226044,4.1359,134.53,134.43,25.68]
[1726019226436,224.0,134.68,134.5,25.68]
[1726019226640,224.0,134.68,134.53,3.7162]
[1726019226641,1.3786,134.61,134.53,3.7162]
[1726019226841,1.2872,134.66,134.52,27.0578]
[1726019226842,26.9672,134.66,134.52,27.0578]
[1726019227141,1.3038,134.65,134.52,27.0578]
[1726019227345,1.3038,134.65,134.52,30.73068969]
[1726019227534,1.3038,134.65,134.55,25.68]
[1726019228031,1.3038,134.65,134.57,3.7151]
[1726019229942,1.3038,134.65,134.58,3.715]
[1726019230146,1.3038,134.65,134.55,25.68]
[1726019230448,1.3038,134.65,134.58,3.715]
[1726019230759,1.3038,134.65,134.57,25.68]
[1726019230933,1.2872,134.66,134.6,3.7144]
[1726019231130,1.2872,134.66,134.58,1.3155]
[1726019231743,1.2872,134.66,134.58,5.0305]
[1726019232344,1.2872,134.66,134.58,1.3155]
[1726019232643,1.2872,134.66,134.58,2.6089]
[1726019233037,1.2872,134.66,134.6,3.7143]
[1726019233938,1.2872,134.66,134.59,3.7147]
[1726019235146,1.2872,134.66,134.58,1.3155]
[1726019235344,25.68,134.64,134.53,1.3518]
[1726019236445,224.0,134.72,134.61,25.68]
[1726019236641,364.94205599,134.78,134.58,25.68]
[1726019236642,7.71829167,134.71,134.58,25.68]
[1726019236841,25.68,134.67,134.58,1.3685]
[1726019237146,25.68,134.65,134.53,1.3518]
[1726019237446,2.6298,134.64,134.54,25.68]
[1726019237635,2.6298,134.64,134.54,27.0792]
[1726019238537,2.6298,134.64,134.56,3.7154]
[1726019238738,2.6298,134.64,134.56,25.68]
[1726019238941,25.68,134.68,134.56,25.68]
[1726019239238,25.68,134.68,134.58,3.7148]
[1726019239951,25.68,134.68,134.57,3.7152]
[1726019240539,25.68,134.68,134.58,3.715]
[1726019240747,28.3098,134.7,134.56,25.68]
[1726019241043,28.3098,134.7,134.58,25.68]
[1726019241648,28.3098,134.7,134.58,29.3948]
[1726019241839,28.3098,134.7,134.58,25.68]
[1726019242243,28.3098,134.7,134.59,3.7147]
[1726019243247,28.3098,134.7,134.58,29.395]
[1726019243952,25.68,134.67,134.56,25.68]
[1726019245241,25.68,134.67,134.54,27.0792]
[1726019245653,25.68,134.67,134.55,3.7157]
[1726019245852,25.68,134.67,134.54,27.0792]
[1726019246054,25.68,134.67,134.54,30.7951]
[1726019246362,2.6298,134.7,134.31,35.31717236]
[1726019246363,2386.0,134.37,134.31,7.75906757]
[1726019246654,2.6298,134.7,133.94,1.4074]
[1726019246655,87.33969706,134.38,133.94,1.4074]
[1726019246847,25.68,134.07,133.95,1.36820284]
[1726019247448,25.68,134.04,133.94,1.4074]
[1726019247658,25.68,134.07,133.94,1.4074]
[1726019247852,338.0,134.19,133.94,1.4074]
[1726019248153,54.34352118,134.06,133.94,1.4074]
[1726019248452,16.12477161,134.05,133.94,1.4074]
[1726019248657,3.7309,134.01,133.94,1.4074]
[1726019248952,12.39352118,134.0,133.87,41.95]
[1726019249252,16.12738419,134.0,133.87,41.95]
[1726019249452,12.39352118,133.99,133.87,41.95]
[1726019249655,12.39352118,133.98,133.87,41.95]
[1726019249856,41.95,134.03,133.89,41.95]
[1726019249857,12.39352118,133.97,133.89,41.95]
[1726019250055,41.95,134.07,133.87,41.95]
[1726019250056,12.39352118,133.96,133.87,41.95]
[1726019250356,41.95,133.98,133.84,41.95]
[1726019250657,41.95,133.95,133.83,3.7357]
[1726019250955,16.11025909,133.94,133.81,41.95]
[1726019251157,12.37489285,133.93,133.81,41.95]
[1726019251355,12.37489285,133.92,133.82,41.95]
[1726019251652,41.95,133.98,133.84,41.95]
[1726019251861,41.95,133.96,133.82,41.95]
[1726019252048,17.14437594,133.95,133.82,45.67031366]
[1726019252250,41.95,133.96,133.82,41.95]
[1726019252449,13.28632346,133.95,133.88,3.7344]
[1726019252651,13.28632346,133.94,133.82,41.95]
[1726019252849,41.95,133.98,133.84,41.95]
[1726019253049,41.95,133.98,133.82,3.70612397]
[1726019253050,13.28844773,133.97,133.87,41.95]
[1726019253246,41.95,134.0,133.87,41.95]
[1726019253952,41.95,134.0,133.92,3.7332]
[1726019254147,41.95,134.0,133.87,41.95]
[1726019254346,41.95,133.98,133.84,41.95]
[1726019254951,41.95,133.98,133.86,3.735]
[1726019255154,41.95,133.96,133.84,41.95]
[1726019255650,41.95,133.98,133.86,41.95]
[1726019256252,41.95,134.0,133.88,41.95]
[1726019256455,41.95,134.05,133.93,41.95]
[1726019256657,118.05797705,134.06,133.95,41.17409325]
[1726019256963,118.05797705,134.06,133.95,41.95]
[1726019257257,118.05797705,134.06,133.95,41.17285289]
[1726019257456,118.05797705,134.06,133.93,41.95]
[1726019257660,41.95,134.02,133.91,41.95]
[1726019257959,41.95,134.02,133.89,41.95]
[1726019258159,41.95,134.02,133.91,41.95]
[1726019258357,41.95,134.05,133.93,41.95]
[1726019259649,41.95,134.05,133.99,3.7314]
[1726019259956,118.05797705,134.06,133.93,41.95]
[1726019260148,118.05797705,134.06,134.01,3.7308]
[1726019260354,118.05797705,134.06,133.93,41.95]
[1726019260756,41.95,134.04,133.92,1.3563]
[1726019260949,41.95,134.04,133.92,43.3063]
[1726019261162,118.05797705,134.06,133.92,1.3563]
[1726019261163,41.95,134.02,133.92,1.3563]
[1726019261552,41.95,134.04,133.92,1.3563]
[1726019262057,3.78358696,134.13,133.92,1.3563]
[1726019262058,41.95,134.08,133.96,41.95]
[1726019262256,41.95,134.08,134.01,3.7307]
[1726019262466,41.95,134.08,133.96,41.95]
[1726019264260,41.95,134.1,133.98,41.95]
[1726019264564,41.95,134.1,134.02,3.7304]
[1726019264957,41.95,134.1,133.98,41.95]
[1726019265153,41.95,134.1,133.98,41.69028834]
[1726019265665,41.95,134.1,134.0,3.7308]
[1726019266063,41.95,134.08,134.0,3.7308]
[1726019266253,41.95,134.08,133.94,41.95]
[1726019266457,41.95,134.06,133.92,1.3563]
[1726019266657,0.69831608,133.94,133.92,43.3063]
[1726019266856,0.69831608,133.94,133.93,3.7331]
[1726019267061,0.69831608,133.94,133.92,1.3563]
[1726019267353,0.69831608,133.94,133.93,3.7331]
[1726019267958,0.69831608,133.94,133.92,0.65686761]
[1726019267959,41.95,134.03,133.92,42.60686761]
[1726019268162,41.95,134.06,133.94,41.95]
[1726019268556,41.95,134.06,133.97,3.7319]
[1726019268762,41.95,134.06,133.92,0.65686761]
[1726019268763,41.95,134.06,133.92,42.60686761]
[1726019270171,41.95,134.06,133.94,41.95]
[1726019270371,41.95,134.08,133.96,41.95]
[1726019270566,383.94358561,134.1,133.99,41.95]
[1726019270760,159.94358561,134.1,134.0,3.7311]
[1726019271169,159.94358561,134.1,133.92,0.65686761]
[1726019271480,159.94358561,134.1,133.97,41.95]
[1726019272370,159.94358561,134.1,133.99,3.7313]
[1726019273472,159.94358561,134.1,134.0,3.731]
[1726019273673,159.94358561,134.1,133.97,41.95]
[1726019274173,159.94358561,134.1,133.99,41.95]
[1726019274174,117.99358561,134.1,133.99,41.95]
[1726019274573,117.99358561,134.1,134.03,3.7301]
[1726019274769,117.99358561,134.1,133.99,41.95]
[1726019275079,41.95,134.09,133.99,45.6814]
[1726019275271,41.95,134.09,133.99,3.7314]
[1726019275675,41.95,134.09,134.01,3.7308]
[1726019276072,41.95,134.09,133.97,41.95]
[1726019276773,41.95,134.09,133.97,41.32151553]
[1726019276975,41.95,134.09,134.01,3.7307]
[1726019277182,41.95,134.09,134.01,3.10121085]
[1726019277484,41.95,134.07,133.94,1.3786]
[1726019278475,41.95,134.03,133.94,1.3786]
[1726019278676,41.95,134.0,133.94,1.3786]
[1726019278978,41.95,133.98,133.86,41.95]
[1726019279680,41.95,133.98,133.89,3.7341]
[1726019279984,41.95,133.98,133.86,41.95]
[1726019280574,41.95,133.98,133.85,1.3643]
[1726019280575,41.95,133.94,133.85,1.3643]
[1726019280778,345.443,134.05,133.86,41.95]
[1726019280779,41.95,133.98,133.86,41.95]
[1726019280972,41.95,134.0,133.88,41.95]
[1726019281178,41.95,134.0,133.9,3.7339]
[1726019281585,41.95,134.0,133.86,41.95]
[1726019281887,118.07512972,134.01,133.93,41.95]
[1726019282184,118.07512972,134.01,133.91,41.95]
[1726019282568,118.07512972,134.01,133.93,3.733]
[1726019282975,41.95,134.0,133.88,41.95]
[1726019283580,41.95,134.0,133.93,3.7328]
[1726019283779,41.95,134.0,133.88,41.95]
[1726019283974,41.95,133.98,133.86,41.95]
[1726019285979,41.95,133.98,133.91,3.7334]
[1726019286182,41.95,133.98,133.86,41.95]
[1726019286387,41.95,134.03,133.93,41.95]
[1726019286579,41.95,134.05,133.95,41.95]
[1726019286881,41.95,134.05,133.95,41.38436398]
[1726019287179,41.95,134.05,133.95,40.81782374]
[1726019287376,41.95,134.05,133.86,41.95]
[1726019287377,41.95,134.05,133.91,3.68839605]
[1726019287575,41.95,134.05,133.96,41.95]
[1726019288479,118.03141499,134.06,133.96,41.95]
[1726019289587,118.03141499,134.06,134.0,3.7309]
[1726019289782,118.03141499,134.06,133.96,41.95]
[1726019290481,118.03141499,134.06,133.98,41.95]
[1726019290875,118.03141499,134.06,133.95,41.95]
[1726019291478,118.03141499,134.06,133.99,3.7313]
[1726019291878,118.03141499,134.06,133.95,41.95]
[1726019292085,41.95,134.05,133.95,41.95]
[1726019292888,118.03141499,134.06,134.0,3.7309]
[1726019293980,118.03141499,134.06,133.95,41.95]
[1726019294186,41.95,134.08,133.95,41.95]
[1726019294383,224.0,134.16,134.0,41.95]
[1726019294586,41.95,134.13,134.05,3.7295]
[1726019294781,41.95,134.11,134.0,41.95]
[1726019295289,41.95,134.11,134.0,41.43065806]
[1726019295490,41.95,134.11,133.99,3.82368303]
[1726019295685,41.95,134.11,133.93,41.95]
[1726019295686,41.95,134.11,134.0,41.95]
[1726019295887,41.95,134.14,134.01,3.67631696]
[1726019296088,41.95,134.14,134.02,41.95]
[1726019296287,41.95,134.14,134.02,45.76062527]
[1726019296592,41.95,134.14,134.0,45.70354424]
[1726019296786,41.95,134.11,134.04,3.73]
[1726019296992,41.95,134.11,134.0,41.95]
[1726019297391,41.95,134.11,134.03,3.7301]
[1726019297687,41.95,134.11,134.0,41.71015099]
[1726019297886,41.95,134.11,133.97,1.3115]
[1726019297887,41.95,134.11,133.98,41.95]
[1726019298089,41.95,134.11,134.02,3.7304]
[1726019298284,41.95,134.11,133.98,41.95]
[1726019298490,41.95,134.11,134.05,3.7297]
[1726019298887,41.95,134.11,134.0,45.71874479]
[1726019299292,41.95,134.14,134.0,45.71874479]
[1726019299496,41.95,134.14,134.02,41.95]
[1726019299800,41.95,134.14,134.07,3.7291]
[1726019299997,41.95,134.14,134.03,1.3079]
[1726019300896,41.95,134.16,134.08,3.7286]
[1726019302097,41.95,134.16,134.03,1.3079]
[1726019302694,41.95,134.16,134.09,3.7285]
[1726019302899,41.95,134.16,134.03,1.3079]
[1726019303501,41.95,134.16,134.05,41.95]
[1726019304495,224.0,134.22,134.05,41.95]
[1726019304496,41.95,134.18,134.05,41.95]
[1726019304699,41.95,134.16,134.05,41.95]
[1726019304900,3.80528003,134.2,134.03,43.2579]
[1726019304901,41.95,134.14,134.03,43.2579]
[1726019305300,41.95,134.21,134.03,43.2579]
[1726019305301,41.95,134.16,134.03,43.2579]
[1726019305810,41.95,134.16,134.07,3.7289]
[1726019306198,41.95,134.16,134.03,43.2579]
[1726019306602,41.95,134.06,133.94,1.2942]
[1726019306801,41.95,134.04,133.94,1.2942]
[1726019307108,41.95,133.99,133.94,1.2942]
[1726019307494,41.95,133.99,133.86,41.95]
[1726019307700,3.7322,133.96,133.87,1.3116]
[1726019308000,41.95,134.04,133.9,41.95]
[1726019308207,41.95,134.06,133.9,45.7188481]
[1726019308406,41.95,134.04,133.9,45.7188481]
[1726019308597,41.95,134.06,133.9,45.7188481]
[1726019308799,3.7309,134.01,133.9,45.7188481]
[1726019309000,41.95,134.06,133.9,45.7188481]
[1726019309197,41.95,134.02,133.9,45.7188481]
[1726019309401,41.95,134.06,133.95,41.95]
[1726019309704,118.00229605,134.09,133.95,41.95]
[1726019309705,41.95,134.08,133.95,41.95]
[1726019309906,3.7303,134.03,133.95,41.95]
[1726019310108,41.95,134.04,133.93,41.95]
[1726019310310,41.95,134.04,133.91,41.95]
[1726019311206,41.95,134.07,133.95,41.95]
[1726019311407,3.7305,134.03,133.95,41.95]
[1726019311803,41.95,134.07,133.95,41.95]
[1726019312004,159.95229605,134.09,133.97,41.95]
[1726019312299,118.00229605,134.09,134.0,41.95]
[1726019312603,118.00229605,134.09,133.98,1.2786]
[1726019313104,3.7294,134.07,133.98,1.2786]
[1726019313311,224.0,134.12,133.98,1.2786]
[1726019313312,265.95,134.12,133.99,41.95]
[1726019314112,41.95,134.14,134.02,41.95]
[1726019314611,3.7284,134.1,134.02,41.95]
[1726019314815,3.7284,134.1,134.03,3.8173206]
[1726019315414,3.7286,134.09,134.02,41.95]
[1726019315720,3.7286,134.09,133.98,1.2786]
[1726019315721,41.95,134.09,133.98,1.2786]
[1726019315917,41.95,134.07,133.98,1.2786]
[1726019316512,41.95,134.09,133.98,1.2786]
[1726019317116,41.95,134.07,133.98,1.2786]
[1726019318120,3.7298,134.05,133.98,1.2786]
[1726019318423,41.95,134.07,133.98,1.2786]
[1726019319021,3.7299,134.05,133.98,1.2786]
[1726019319425,3.7299,134.05,133.68,7.443]
[1726019319426,41.95,134.04,133.91,41.95]
[1726019319735,41.95,134.04,133.92,1.3166]
[1726019320325,3.731,134.01,133.92,1.3166]
[1726019320526,41.95,134.04,133.92,1.3166]
[1726019320823,3.7308,134.02,133.92,1.3166]
[1726019321419,3.7308,134.02,133.94,41.95]
[1726019321927,3.7303,134.03,133.96,41.95]
[1726019322224,41.95,134.07,133.96,41.95]
[1726019322722,3.7302,134.04,133.96,41.95]
[1726019322931,41.95,134.07,133.94,41.95]
[1726019323120,41.95,134.02,133.92,1.3166]
[1726019323519,41.95,134.02,133.92,43.2666]
[1726019323728,41.95,134.02,133.93,3.73133778]
[1726019323924,41.95,134.02,133.92,43.2666]
[1726019324429,41.95,134.02,133.92,47.0890885]
[1726019324619,41.95,134.02,133.92,43.2666]
[1726019324823,41.95,134.02,133.92,1.3166]
[1726019325225,41.95,133.98,133.89,1.3946]
[1726019325425,41.95,133.98,133.87,1.3962]
[1726019325619,231.443,134.1,133.89,41.95]
[1726019325832,41.95,134.02,133.89,41.95]
[1726019326024,41.95,134.07,133.87,43.3462]
[1726019326025,41.95,133.97,133.87,43.3462]
[1726019326224,41.95,133.97,133.83,2.6949]
[1726019326225,41.95,133.95,133.83,2.6949]
[1726019326734,41.95,133.97,133.85,41.95]
[1726019327831,41.95,133.97,133.88,3.7342]
[1726019328031,41.95,133.97,133.85,41.95]
[1726019328731,41.95,133.97,133.87,41.95]
[1726019329229,41.95,133.97,133.83,4.0927]
[1726019329434,41.95,133.97,133.84,41.95]
[1726019330527,41.95,133.97,133.87,3.7347]
[1726019331828,41.95,133.97,133.88,3.7343]
[1726019332826,41.95,133.97,133.89,3.7341]
[1726019333026,41.95,134.0,133.87,41.95]
[1726019333427,41.95,134.0,133.89,41.95]
[1726019333734,1.3092,134.02,133.91,41.95]
[1726019333932,1.3092,134.02,133.94,3.7327]
[1726019334127,1.3092,134.02,133.91,45.66285848]
[1726019334529,41.95,134.03,133.95,3.7324]
[1726019334929,41.95,134.03,133.91,45.66285848]
[1726019335229,41.95,134.03,133.94,3.7327]
[1726019336035,41.95,134.03,133.95,3.7325]
[1726019336834,41.95,134.03,133.96,3.7322]
[1726019337139,41.95,134.05,133.93,41.95]
[1726019337532,41.95,134.03,133.92,1.34]
[1726019338031,41.95,134.03,133.94,3.7328]
[1726019338230,41.95,134.03,133.92,1.34]
[1726019338439,119.32573858,134.11,133.93,41.95]
[1726019338440,41.95,134.05,133.93,41.95]
[1726019338639,41.95,134.05,133.96,3.7321]
[1726019339537,41.95,134.05,133.93,41.95]
[1726019340036,41.6901846,134.05,133.93,41.95]
[1726019340234,41.6901846,134.05,133.93,43.3131]
[1726019341329,119.32573858,134.11,133.95,41.95]
[1726019341330,41.95,134.07,133.95,41.95]
[1726019341943,119.32573858,134.11,133.98,41.95]
[1726019341944,41.95,134.1,133.98,41.95]
[1726019342336,41.95,134.08,133.95,41.95]
[1726019342640,119.32573858,134.11,133.93,1.3631]
[1726019342641,41.95,134.06,133.93,43.3131]
[1726019342843,41.95,134.03,133.94,3.7327]
[1726019343044,41.95,134.01,133.93,1.3631]
[1726019343238,41.95,134.01,133.92,1.34]
[1726019344841,41.95,134.04,133.92,1.34]
[1726019345446,41.95,134.04,133.94,3.7326]
[1726019345649,41.95,134.04,133.92,1.34]
[1726019345951,41.95,134.04,133.94,3.7327]
[1726019346352,41.95,134.02,133.92,1.34]
[1726019346543,41.95,134.02,133.82,25.98572973]
[1726019346544,41.95,133.95,133.69,11.2188]
[1726019346746,41.95,133.92,133.81,44.6759]
[1726019347045,41.95,133.9,133.81,6.4623]
[1726019347247,41.95,133.9,133.81,2.7259]
[1726019347645,41.95,133.9,133.81,6.4621]
[1726019348052,41.95,133.9,133.81,3.7362]
[1726019349144,41.95,133.94,133.8,41.95]
[1726019349352,41.95,133.94,133.82,41.95]
[1726019349552,41.95,133.94,133.85,3.7351]
[1726019349848,41.95,133.96,133.84,41.95]
[1726019350043,41.95,133.96,133.87,3.7347]
[1726019350247,41.95,133.96,133.84,41.95]
[1726019350944,41.95,133.96,133.86,3.7348]
[1726019351343,41.95,133.96,133.85,3.7352]
[1726019351543,41.95,133.96,133.84,41.95]
[1726019351745,41.95,133.96,133.84,45.76890688]
[1726019352146,41.95,133.99,133.86,41.95]
[1726019352652,41.95,133.99,133.88,3.7344]
[1726019353650,41.95,133.99,133.89,3.7341]
[1726019354949,41.95,133.99,133.85,1.3427]
[1726019355158,41.95,133.96,133.85,1.3427]
[1726019355449,41.95,133.94,133.86,3.7348]
[1726019356256,41.95,133.94,133.81,41.95]
[1726019356450,3.70247576,133.98,133.81,41.95]
[1726019356451,41.95,133.92,133.81,41.95]
[1726019356654,41.95,133.92,133.8,1.2966]
[1726019356954,41.95,133.87,133.78,1.3429]
[1726019359858,41.95,133.87,133.79,3.7367]
[1726019360357,41.95,133.87,133.8,3.7367]
[1726019360849,41.95,133.87,133.79,3.7369]
[1726019361250,41.95,133.89,133.78,1.3429]
[1726019361558,41.95,133.89,133.82,3.7361]
[1726019361860,41.95,133.89,133.79,41.95]
[1726019362156,41.95,133.91,133.85,3.735]
[1726019362345,41.95,133.91,133.81,41.95]
[1726019362748,41.95,133.91,133.84,3.7355]
[1726019364756,41.95,133.91,133.83,3.7358]
[1726019365455,41.95,133.91,133.82,3.7361]
[1726019365655,41.95,133.91,133.81,41.95]
[1726019366059,41.95,133.91,133.84,3.7356]
[1726019366255,41.95,133.89,133.78,1.3429]
[1726019366448,41.95,133.84,133.76,3.78511158]
[1726019366658,41.95,133.84,133.55,3.44839049]
[1726019366659,15.0,133.76,133.54,227.0]
[1726019366861,41.95,133.78,133.67,41.95]
[1726019367154,41.95,133.78,133.67,3.65437152]
[1726019367358,41.95,133.78,133.66,44.6215]
[1726019367856,41.95,133.78,133.66,48.37822231]
[1726019368454,41.95,133.78,133.66,6.42822231]
[1726019368655,41.95,133.73,133.66,6.4121]
[1726019368856,41.95,133.73,133.66,2.6715]
[1726019369655,41.95,133.73,133.61,3.68482636]
[1726019369861,41.95,133.73,133.6,41.95]
[1726019370059,41.42915011,133.73,133.6,3.75738587]
[1726019370261,41.42915011,133.73,133.62,41.95]
[1726019370659,41.95,133.76,133.64,41.95]
[1726019370857,41.95,133.78,133.66,41.95]
[1726019371057,41.95,133.81,133.69,41.95]
[1726019371263,41.95,133.81,133.73,3.7384]
[1726019371460,41.95,133.81,133.71,3.69679494]
[1726019371760,41.95,133.81,133.75,3.738]
[1726019371956,118.23731701,133.83,133.69,3.77833088]
[1726019371957,41.95,133.76,133.69,3.77833088]
[1726019372159,41.95,133.76,133.7,3.7394]
[1726019372352,41.95,133.76,133.69,3.77833088]
[1726019372560,41.95,133.76,133.64,41.95]
[1726019372953,41.95,133.73,133.62,47.19624223]
[1726019373254,41.95,133.73,133.62,43.365]
[1726019374463,41.95,133.76,133.64,41.95]
[1726019374664,41.95,133.73,133.62,1.415]
[1726019374861,41.95,133.73,133.62,5.0974053]
[1726019375055,41.95,133.73,133.65,3.7406]
[1726019375254,41.95,133.73,133.62,5.0974053]
[1726019375459,41.95,133.8,133.62,1.415]
[1726019375460,41.95,133.71,133.62,1.415]
[1726019375966,41.95,133.69,133.62,1.415]
[1726019376156,41.95,133.69,133.58,2.662]
[1726019376761,3.71156296,133.74,133.58,2.662]
[1726019376954,41.95,133.7,133.58,2.662]
[1726019377366,41.95,133.67,133.58,2.662]
[1726019377572,45.64136296,133.74,133.54,1.3679]
[1726019377573,41.95,133.65,133.54,1.3679]
[1726019377768,41.95,133.65,133.54,5.1118]
[1726019377971,41.95,133.65,133.54,1.3679]
[1726019378174,41.95,133.67,133.56,3.7431]
[1726019378473,41.95,133.64,133.54,1.3679]
[1726019379574,41.95,133.66,133.54,1.3679]
[1726019379766,41.95,133.66,133.59,3.7425]
[1726019379958,41.95,133.66,133.55,41.95]
[1726019380163,45.64136296,133.74,133.54,1.3679]
[1726019380164,41.95,133.64,133.54,1.3679]
[1726019380766,41.95,133.68,133.57,41.95]
[1726019381073,41.95,133.68,133.58,1.3158]
[1726019381569,41.95,133.7,133.59,41.95]
[1726019381770,41.95,133.7,133.58,1.3158]
[1726019382071,224.0,133.75,133.6,3.7421]
[1726019382072,41.95,133.68,133.6,3.7421]
[1726019382375,41.95,133.7,133.59,41.95]